lending/lending_fUSD_20240809
["ID","MTS","AMOUNT","RATE_DAILY","PERIOD"]
[334550707,1723194640425,-151.0,0.00010991,2]
[334550709,1723194640435,-151.0,0.00010991,2]
[334550711,1723194640446,-151.142009,0.00010991,2]
[334550712,1723194640457,-151.0,0.00010991,2]
[334550713,1723194640466,-151.0,0.00010991,2]
[334550714,1723194640475,-151.0,0.00010991,2]
[334550715,1723194640485,-1955.0,0.00010992,2]
[334550716,1723194640496,-140941.7873812,0.00010992,2]
[334550717,1723194640506,-154991.8975083,0.00010992,2]
[334550718,1723194640517,-169042.0076353,0.00010992,2]
[334550719,1723194640530,-183092.1177623,0.00010992,2]
[334550720,1723194640541,-197142.2278894,0.00010992,2]
[334550721,1723194640550,-17281.6760494,0.00010992,2]
[334550722,1723194640560,-19004.4401508,0.00010992,2]
[334550723,1723194640571,-20727.2042521,0.00010992,2]
[334550724,1723194640580,-22449.9683534,0.00010992,2]
[334550725,1723194640590,-24172.7324547,0.00010992,2]
[334550726,1723194640599,-21347.3021693,0.00010992,2]
[334550727,1723194640610,-23381.1221255,0.00010992,2]
[334550728,1723194640620,-25414.9420816,0.00010992,2]
[334550729,1723194640629,-27448.7620378,0.00010992,2]
[334550730,1723194640638,-29482.5819939,0.00010992,2]
[334550731,1723194640648,-6930.9033693,0.00010992,2]
[334550732,1723194640657,-7591.2308184,0.00010992,2]
[334550733,1723194640667,-8251.5582675,0.00010992,2]
[334550734,1723194640678,-8911.8857166,0.00010992,2]
[334550735,1723194640689,-9572.2131657,0.00010992,2]
[334550736,1723194640698,-151.754921,0.00010992,2]
[334550737,1723194640708,-151.710793,0.00010992,2]
[334550738,1723194640718,-151.859465,0.00010992,2]
[334550739,1723194640728,-167.607367,0.00010992,2]
[334550740,1723194640738,-151.562467,0.00010992,2]
[334550741,1723194640749,-151.440959,0.00010992,2]
[334550743,1723194640758,-151.0,0.00010992,2]
[334550745,1723194640768,-152.370924,0.00010992,2]
[334550747,1723194640779,-151.0,0.00010992,2]
[334550748,1723194640788,-151.0,0.00010992,2]
[334550749,1723194640798,-151.38011,0.00010992,2]
[334550750,1723194640807,-151.0,0.00010992,2]
[334550751,1723194640817,-153.201758,0.00010992,2]
[334550752,1723194640826,-151.0,0.00010992,2]
[334550753,1723194640836,-151.0,0.00010992,2]
[334550754,1723194640845,-204.676596,0.00010992,2]
[334550755,1723194640855,-151.632674,0.00010992,2]
[334550756,1723194640865,-151.0,0.00010992,2]
[334550757,1723194640875,-151.0,0.00010992,2]
[334550758,1723194640887,-151.0,0.00010992,2]
[334550759,1723194640896,-151.0,0.00010992,2]
[334550760,1723194640906,-151.460035,0.00010992,2]
[334550761,1723194640916,-151.0,0.00010992,2]
[334550762,1723194640926,-151.0,0.00010992,2]
[334550763,1723194640937,-151.0,0.00010992,2]
[334550764,1723194640947,-151.0,0.00010992,2]
[334550765,1723194640958,-151.0,0.00010992,2]
[334550766,1723194640967,-151.0,0.00010992,2]
[334550767,1723194640977,-151.0,0.00010992,2]
[334550768,1723194640988,-151.0,0.00010992,2]
[334550769,1723194640999,-151.0,0.00010992,2]
[334550770,1723194641009,-290.841568,0.00010992,2]
[334550771,1723194641019,-151.0,0.00010992,2]
[334550772,1723194641029,-151.0,0.00010992,2]
[334550773,1723194641038,-294.292123,0.00010992,2]
[334550774,1723194641049,-246.704049,0.00010992,2]
[334550775,1723194641059,-151.0,0.00010992,2]
[334550776,1723194641070,-151.703394,0.00010992,2]
[334550777,1723194641079,-151.0,0.00010992,2]
[334550778,1723194641089,-151.0,0.00010992,2]
[334550779,1723194641100,-151.0,0.00010992,2]
[334550780,1723194641111,-151.0,0.00010992,2]
[334550781,1723194641122,-285.07146,0.00010992,2]
[334550782,1723194641134,-151.0,0.00010992,2]
[334550783,1723194641144,-151.0,0.00010992,2]
[334550784,1723194641154,-151.0,0.00010992,2]
[334550785,1723194641164,-151.0,0.00010992,2]
[334550786,1723194641173,-301.691671,0.00010992,2]
[334550787,1723194641184,-151.0,0.00010992,2]
[334550788,1723194641193,-286.727963,0.00010992,2]
[334550789,1723194641203,-153.052661,0.00010992,2]
[334550790,1723194641212,-151.0,0.00010992,2]
[334550791,1723194641222,-151.0,0.00010992,2]
[334550792,1723194641231,-151.0,0.00010992,2]
[334550793,1723194641240,-158.495092,0.00010992,2]
[334550794,1723194641251,-151.73625,0.00010992,2]
[334550795,1723194641261,-151.0,0.00010992,2]
[334550796,1723194641270,-151.0,0.00010992,2]
[334550797,1723194641279,-151.0,0.00010992,2]
[334550798,1723194641288,-151.0,0.00010992,2]
[334550799,1723194641297,-151.0,0.00010992,2]
[334550800,1723194641306,-151.0,0.00010992,2]
[334550801,1723194641318,-154.060109,0.00010992,2]
[334550802,1723194641327,-151.230831,0.00010992,2]
[334550803,1723194641337,-151.0,0.00010992,2]
[334550804,1723194641346,-151.59404,0.00010992,2]
[334550805,1723194641355,-151.0,0.00010992,2]
[334550806,1723194641365,-151.0,0.00010992,2]
[334550807,1723194641374,-151.0,0.00010992,2]
[334550808,1723194641383,-151.0,0.00010992,2]
[334550809,1723194641392,-151.0,0.00010992,2]
[334550810,1723194641401,-151.0,0.00010992,2]
[334550811,1723194641410,-151.0,0.00010992,2]
[334550812,1723194641419,-151.0,0.00010992,2]
[334550813,1723194641429,-151.0,0.00010992,2]
[334550814,1723194641439,-169.363228,0.00010992,2]
[334550815,1723194641448,-151.0,0.00010992,2]
[334550816,1723194641458,-151.0,0.00010992,2]
[334550817,1723194641469,-151.0,0.00010992,2]
[334550818,1723194641479,-151.0,0.00010992,2]
[334550819,1723194641490,-157.866411,0.00010992,2]
[334550820,1723194641500,-151.420202,0.00010992,2]
[334550821,1723194641510,-151.144981,0.00010992,2]
[334550822,1723194641520,-151.0,0.00010992,2]
[334550823,1723194641534,-153.431383,0.00010992,2]
[334550824,1723194641544,-151.428604,0.00010992,2]
[334550825,1723194641554,-291.723294,0.00010992,2]
[334550826,1723194641564,-151.0,0.00010992,2]
[334550827,1723194641574,-151.0,0.00010992,2]
[334550828,1723194641583,-151.0,0.00010992,2]
[334550829,1723194641593,-151.0,0.00010992,2]
[334550830,1723194641605,-204.149212,0.00010992,2]
[334550831,1723194641617,-151.595093,0.00010992,2]
[334550832,1723194641626,-151.0,0.00010992,2]
[334550833,1723194641637,-151.499765,0.00010992,2]
[334550834,1723194641647,-151.3017,0.00010992,2]
[334550835,1723194641656,-151.0,0.00010992,2]
[334550836,1723194641665,-152.906,0.00010992,2]
[334550837,1723194641675,-151.246536,0.00010992,2]
[334550838,1723194641684,-151.0,0.00010992,2]
[334550839,1723194641693,-290.426613,0.00010992,2]
[334550840,1723194641702,-151.0,0.00010992,2]
[334550841,1723194641711,-151.0,0.00010992,2]
[334550842,1723194641721,-151.0,0.00010992,2]
[334550843,1723194641730,-151.0,0.00010992,2]
[334550844,1723194641740,-151.0,0.00010992,2]
[334550845,1723194641749,-236.330946,0.00010992,2]
[334550846,1723194641759,-151.368797,0.00010992,2]
[334550847,1723194641768,-151.767201,0.00010992,2]
[334550848,1723194641778,-162.039552,0.00010992,2]
[334550849,1723194641787,-151.0,0.00010992,2]
[334550850,1723194641796,-151.0,0.00010992,2]
[334550851,1723194641806,-151.0,0.00010992,2]
[334550852,1723194641815,-151.0,0.00010992,2]
[334550853,1723194641825,-151.0,0.00010992,2]
[334550854,1723194641838,-247.07712,0.00010992,2]
[334550855,1723194641847,-151.0,0.00010992,2]
[334550856,1723194641858,-195.848134,0.00010992,2]
[334550857,1723194641867,-151.0,0.00010992,2]
[334550858,1723194641878,-151.0,0.00010992,2]
[334550859,1723194641887,-151.0,0.00010992,2]
[334550860,1723194641897,-151.0,0.00010992,2]
[334550861,1723194641907,-151.0,0.00010992,2]
[334550862,1723194641917,-151.0,0.00010992,2]
[334550863,1723194641928,-163.309164,0.00010992,2]
[334550864,1723194641939,-151.0,0.00010992,2]
[334550865,1723194641948,-151.0,0.00010992,2]
[334550866,1723194641958,-151.0,0.00010992,2]
[334550867,1723194641967,-1000.0,0.00010992,2]
[334550868,1723194641977,-1000.0,0.00010992,2]
[334550869,1723194641986,-1000.0,0.00010992,2]
[334550870,1723194641995,-1000.0,0.00010992,2]
[334550871,1723194642006,-1000.0,0.00010992,2]
[334550872,1723194642015,-1000.0,0.00010992,2]
[334550873,1723194642024,-1000.0,0.00010992,2]
[334550874,1723194642033,-1000.0,0.00010992,2]
[334550875,1723194642042,-1000.0,0.00010992,2]
[334550876,1723194642051,-1000.0,0.00010992,2]
[334550877,1723194642060,-1000.0,0.00010992,2]
[334550878,1723194642071,-1000.0,0.00010992,2]
[334550879,1723194642080,-1000.0,0.00010992,2]
[334550880,1723194642089,-1000.0,0.00010992,2]
[334550881,1723194642099,-1000.0,0.00010992,2]
[334550882,1723194642108,-1000.0,0.00010992,2]
[334550883,1723194642117,-1000.0,0.00010992,2]
[334550884,1723194642126,-1000.0,0.00010992,2]
[334550885,1723194642135,-1000.0,0.00010992,2]
[334550886,1723194642145,-1000.0,0.00010992,2]
[334550887,1723194642292,-653.0,0.00010992,2]
[334550888,1723194642305,-3000.0,0.00010998,2]
[334550889,1723194642315,-3000.0,0.00010998,2]
[334550890,1723194642327,-1000.0,0.00010999,2]
[334550891,1723194642344,-211.19180732,0.00010999,2]
[334550892,1723194642354,-2953.9477494,0.00010999,2]
[334550893,1723194642363,-1442725.60104448,0.00011,2]
[334550894,1723194642372,-250.91093678,0.00011,2]
[334550895,1723194642382,-2193561.84922054,0.00011,2]
[334550896,1723194642396,-242795.89811579,0.00011,2]
[334550897,1723194642407,-8568.86367622,0.00011,2]
[334550898,1723194642417,-1748.56626615,0.00011,2]
[334550899,1723194642428,-1120.0285415,0.00011,2]
[334550900,1723194642439,-26517.36159153,0.00011,2]
[334550901,1723194642450,-499.9996419,0.00011,2]
[334550902,1723194642460,-1206.83348292,0.00011,2]
[334550903,1723194642477,-5427.19204843,0.00011,2]
[334550904,1723194642489,-1223.93672,0.00011,2]
[334550905,1723194642500,-48410.34228333,0.00011,2]
[334550927,1723194643030,-151.0,0.00010991,2]
[334550928,1723194643039,-817.00000004,0.00011,2]
[334550931,1723194643773,-4640.0,0.00011,2]
[334550932,1723194643785,-1052.727132,0.00011,2]
[334550933,1723194646215,-3727.0205032,0.00010992,2]
[334550934,1723194646225,-1764.0,0.00011,2]
[334550935,1723194646234,-3692.0033468,0.00011,2]
[334550936,1723194646383,-1839.88418353,0.00011,2]
[334550937,1723194750787,150.0,0.00024198,120]
[334550939,1723194811296,150.0,0.00024468,120]
[334550942,1723195091576,783.9,8.769e-05,2]
[334550943,1723195096286,298.67370889,0.00023411,120]
[334550948,1723195605417,744.7,8.764e-05,2]
[334550968,1723195832293,-241.92,0.0001054,2]
[334550970,1723195832304,-200.01,0.00010596,2]
[334550972,1723195832313,-158.07,0.00010613,2]
[334550974,1723195832324,-600.01,0.00010613,2]
[334550975,1723195832334,-210.9584135,0.00010623,2]
[334550976,1723195832345,-409.7464,0.00010651,2]
[334550978,1723195832355,-2197.04138,0.0001089,2]
[334550980,1723195832364,-150.0,0.00010899,2]
[334550982,1723195832374,-12839.1733,0.000109,2]
[334550984,1723195832384,-2828.3531,0.000109,2]
[334550985,1723195832393,-165.01000426,0.000109,2]
[334550986,1723195832403,-1005.0,0.000109,2]
[334550987,1723195832413,-321.92762054,0.000109,2]
[334550988,1723195832422,-1000.0,0.000109,2]
[334550989,1723195832432,-1000.0,0.000109,2]
[334550990,1723195832441,-173.03877897,0.000109,2]
[334550991,1723195832451,-250.0,0.00010959,2]
[334550992,1723195832461,-333.52,0.00010959,2]
[334550993,1723195832471,-15733.52175305,0.0001099,2]
[334550994,1723195832481,-499.99,0.00010992,2]
[334550995,1723195832490,-160.95450747,0.00010997,2]
[334550996,1723195832500,-7615.43530182,0.00010998,2]
[334550997,1723195832509,-1193.99074646,0.00010999,3]
[334550998,1723195832519,-2953.9477494,0.00010999,2]
[334550999,1723195832528,-1106.19059868,0.00010999,3]
[334551000,1723195832538,-1106.19059868,0.00010999,3]
[334551001,1723195832547,-1106.19059868,0.00010999,3]
[334551002,1723195832557,-96764.53659065,0.00010999,2]
[334551003,1723195832567,-241.45362645,0.00010999,2]
[334551004,1723195832577,-1586.0,0.00011,2]
[334551005,1723195832586,-51722.56012549,0.00011,2]
[334551006,1723195832595,-587720.09752731,0.00011,2]
[334551007,1723195832607,-6075.0,0.00011,2]
[334551008,1723195832618,-700.0,0.00011,2]
[334551077,1723195838416,-1522.0,0.00011,2]
[334551078,1723195838425,-24925.38168852,0.00011,2]
[334551079,1723195838437,-5979.78453988,0.00011,2]
[334551080,1723195838532,-2413.96056262,0.00011,2]
[334551081,1723195838543,-866.82892756,0.00011,2]
[334551082,1723195838770,-288.15435887,0.00011,2]
[334551083,1723195838781,-557.89365367,0.00011,2]
[334551084,1723195838793,-2898.699,0.00011,2]
[334551085,1723195838848,-33108.1238901,0.00011,2]
[334551086,1723195838863,-2440.67190885,0.00011,2]
[334551162,1723195840764,-634.69755005,0.00011,2]
[334551163,1723195840778,-2037.00551806,0.00011,2]
[334551166,1723195840790,-43353.24276413,0.00011,2]
[334551180,1723195841210,-251.47879096,0.00011,2]
[334551185,1723195841381,-5077.14760424,0.00011,2]
[334551186,1723195841407,-588.950825,0.00011,2]
[334551192,1723195843311,-824.32959124,0.00011,2]
[334551197,1723195844029,-603.35590555,0.00011,2]
[334551198,1723195844045,-467.40676096,0.00011,2]
[334551209,1723195846592,-638.98582292,0.00011,2]
[334551210,1723195846667,-732.01417708,0.00011,2]
[334551211,1723195846677,-2915.7805952,0.00011,2]
[334551212,1723195890841,150.0,0.00024346,120]
[334551213,1723195950760,150.0,0.0002438,120]
[334551215,1723196174253,781.97,9.113e-05,2]
[334551216,1723196228585,1370.91176247,9.113e-05,2]
[334551217,1723196658851,830.86,8.928e-05,2]
[334551218,1723197024221,-345.50118713,0.00010522,2]
[334551219,1723197024245,-150.0,0.00010622,2]
[334551220,1723197024268,-300.0,0.00010622,2]
[334551221,1723197024294,-3126.28600907,0.00010623,2]
[334551222,1723197024327,-189.97458777,0.00010623,2]
[334551223,1723197024350,-230.17913855,0.00010623,2]
[334551224,1723197024375,-211.41472824,0.00010623,2]
[334551225,1723197024397,-242.65488527,0.00010623,2]
[334551226,1723197024420,-28692.27280437,0.00010623,2]
[334551227,1723197024443,-211.7166596,0.00010822,2]
[334551248,1723197031605,-1045.43220196,0.00010822,2]
[334551249,1723197031615,-596.0913886,0.00010822,2]
[334551250,1723197031624,-155.05840056,0.00010822,2]
[334551251,1723197031634,-652.34381338,0.00010822,2]
[334551252,1723197031649,-2757.43202587,0.00010822,2]
[334551253,1723197031658,-766.76765463,0.000109,2]
[334551297,1723197037853,-6421.14494537,0.000109,2]
[334551298,1723197037862,-1000.0,0.000109,2]
[334551299,1723197037872,-2500.0,0.000109,2]
[334551300,1723197037881,-496.68196368,0.000109,2]
[334551301,1723197037891,-429.23682738,0.000109,2]
[334551302,1723197037901,-640.44381653,0.000109,2]
[334551303,1723197037911,-426.7597,0.000109,2]
[334551304,1723197037920,-422.69,0.00010959,2]
[334551305,1723197037930,-250.0,0.00010959,2]
[334551306,1723197037939,-606.47,0.00010996,2]
[334551307,1723197037948,-991.0848448,0.00010997,2]
[334551308,1723197037958,-5806.9633267,0.00010997,2]
[334551309,1723197037967,-1387.83956601,0.00010997,2]
[334551310,1723197038002,-820.11837879,0.00010997,2]
[334551311,1723197038012,-207.7720022,0.00010999,2]
[334551312,1723197038021,-2192.14628336,0.00010999,2]
[334551313,1723197038031,-1669.04714493,0.00010999,3]
[334551314,1723197038041,-1424.0,0.00011,2]
[334551315,1723197038051,-65671.91169255,0.00011,2]
[334551316,1723197038061,-366818.86792809,0.00011,2]
[334551317,1723197038071,-164.40619713,0.00011,2]
[334551318,1723197038080,-6204576.25558413,0.00011,2]
[334551319,1723197038091,-298.41728368,0.00011,2]
[334551320,1723197038108,-47645.499317,0.00011,2]
[334551346,1723197042690,-5621.27771198,0.00011,2]
[334551349,1723197044028,399.13482193,0.00010822,2]
[334551362,1723197045894,-293.59468847,0.00011,2]
[334551363,1723197045935,-642.88123675,0.00011,2]
[334551364,1723197053440,227.71036735,0.00010822,2]
[334551365,1723197060129,3119.70333999,0.00010822,2]
[334551366,1723197066784,1016.834186,0.00010944,2]
[334551367,1723197067624,1257.14886156,0.00010822,2]
[334551368,1723197068443,4317.7191735,0.000109,2]
[334551369,1723197069093,9313.90319113,0.00010822,2]
[334551370,1723197072097,347.84605854,0.000109,2]
[334551371,1723197165124,407.79527589,8.762e-05,2]
[334551372,1723197165153,415.10472411,8.762e-05,2]
[334551374,1723197219801,186.89527589,8.762e-05,2]
[334551375,1723197219827,40.81509146,8.762e-05,2]
[334551377,1723197304831,227.71036735,8.762e-05,2]
[334551378,1723197394799,227.71036735,8.762e-05,2]
[334551379,1723197424820,227.71036735,8.762e-05,2]
[334551381,1723197624566,781.75,8.255e-05,2]
[334551382,1723197976835,-192.14261377,0.00010002,2]
[334551383,1723197976856,-580.15,0.00010042,2]
[334551384,1723197976879,-485.18,0.00010102,2]
[334551385,1723197976903,-197.46,0.00010296,2]
[334551386,1723197976926,-781.75,0.00010519,2]
[334551387,1723197976946,-293.90366344,0.0001062,2]
[334551388,1723197976967,-155.19515424,0.0001062,2]
[334551389,1723197976988,-155.10788134,0.0001062,2]
[334551390,1723197977009,-258.25029377,0.0001062,2]
[334551391,1723197977030,-155.07645933,0.0001062,2]
[334551392,1723197977051,-155.10762716,0.0001062,2]
[334551393,1723197977073,-300.0,0.00010692,2]
[334551394,1723197977095,-514.82,0.00010693,2]
[334551395,1723197977115,-12821.25707691,0.000107,2]
[334551396,1723197977137,-2454.7959,0.000108,2]
[334551397,1723197977163,-319.02823931,0.000108,2]
[334551398,1723197977184,-150.0,0.00010821,2]
[334551399,1723197977205,-264.43209294,0.00010822,2]
[334551400,1723197977226,-210.9584135,0.00010822,2]
[334551401,1723197977248,-155.46788341,0.00010822,2]
[334551402,1723197977269,-163.74413757,0.00010822,2]
[334551403,1723197977291,-3403.62557204,0.00010822,2]
[334551404,1723197977312,-361.5,0.00010822,2]
[334551405,1723197977332,-499.99,0.00010822,2]
[334551406,1723197977354,-1243.5,0.00010822,2]
[334551407,1723197977375,-996.80699127,0.00010899,2]
[334551409,1723198213043,714.33,8.224e-05,2]
[334551430,1723198231761,-1767.2385,9.902e-05,2]
[334551433,1723198231770,-567.79634803,0.00010209,2]
[334551451,1723198231890,-44.05365197,0.00010209,2]
[334551452,1723198231900,-400.0,0.00010286,2]
[334551453,1723198231910,-714.33,0.00010488,2]
[334551454,1723198231920,-609.8606,0.000106,2]
[334551455,1723198231929,-1233.07980439,0.000107,2]
[334551456,1723198231941,-578.5596183,0.000107,2]
[334551457,1723198231952,-700.0,0.000107,2]
[334551458,1723198231964,-956.69375819,0.000107,2]
[334551459,1723198231998,-9352.92389603,0.000107,2]
[334551460,1723198232007,-297.2478,0.000108,2]
[334551461,1723198232016,-150.0,0.00010898,2]
[334551462,1723198232026,-2181.56793424,0.00010899,2]
[334551463,1723198232035,-2181.56793424,0.00010899,2]
[334551464,1723198232044,-2181.56793424,0.00010899,2]
[334551465,1723198232054,-2181.56793424,0.00010899,2]
[334551466,1723198232063,-2181.56793424,0.00010899,2]
[334551467,1723198232073,-2181.56793424,0.00010899,2]
[334551468,1723198232083,-2181.56793424,0.00010899,2]
[334551469,1723198232092,-2181.56793424,0.00010899,2]
[334551470,1723198232101,-2181.56793424,0.00010899,2]
[334551471,1723198232111,-413.04823206,0.00010899,2]
[334551472,1723198232121,-299.91075402,0.00010899,2]
[334551473,1723198232131,-1050.42686795,0.00010899,2]
[334551474,1723198232141,-312.26640605,0.00010899,2]
[334551475,1723198232150,-288.50126601,0.00010899,2]
[334551476,1723198232160,-449.45808534,0.00010899,2]
[334551477,1723198232170,-181.79082061,0.00010899,2]
[334551478,1723198232179,-170.46315776,0.00010899,2]
[334551480,1723198232189,-14151.6502,0.000109,2]
[334551482,1723198232199,-100000.0,0.000109,2]
[334551484,1723198232208,-152.67384191,0.000109,2]
[334551486,1723198232218,-22150.55,0.000109,2]
[334551488,1723198232228,-8089.2466,0.000109,2]
[334551490,1723198232237,-63218.65751214,0.000109,2]
[334551493,1723198232249,-642.3977412,0.000109,2]
[334551494,1723198232276,-678.69156372,0.000109,2]
[334551495,1723198232287,-590.29971,0.000109,2]
[334551498,1723198237788,-18580.03199997,0.000109,2]
[334551499,1723198237799,-659.75132017,0.000109,2]
[334551500,1723198237917,-127736.19999999,0.000109,2]
[334551501,1723198237929,-3513.2,0.000109,2]
[334551502,1723198237940,-29380.77015281,0.000109,2]
[334551503,1723198237950,-500.0,0.000109,2]
[334551504,1723198237959,-1000.0,0.000109,2]
[334551505,1723198237970,-39139.1824,0.000109,2]
[334551506,1723198237979,-2181.56793424,0.000109,2]
[334551507,1723198237989,-3320.68457414,0.000109,2]
[334551508,1723198237999,-293.12747687,0.00010958,2]
[334551509,1723198238009,-351.2723427,0.00010958,2]
[334551510,1723198238019,-408.70465492,0.00010958,2]
[334551511,1723198238029,-500.0,0.00010958,2]
[334551512,1723198238039,-459.93083446,0.00010958,2]
[334551513,1723198238049,-500.0,0.00010958,2]
[334551514,1723198238059,-500.0,0.00010958,2]
[334551515,1723198238069,-500.0,0.00010958,2]
[334551516,1723198238079,-481.69194623,0.00010958,2]
[334551517,1723198238088,-220.18799402,0.00010958,2]
[334551518,1723198238098,-250.0,0.00010959,2]
[334551519,1723198238110,-200.7247488,0.00010973,2]
[334551520,1723198238121,-300.33350917,0.00010973,2]
[334551521,1723198238134,-5081.5,0.00010997,2]
[334551522,1723198238143,-168.05434707,0.00010997,2]
[334551523,1723198238152,-4301.3368844,0.00010998,2]
[334551524,1723198238162,-734.1168798,0.00010998,2]
[334551525,1723198238171,-2192.14628336,0.00010999,2]
[334551526,1723198238181,-1186.0,0.00011,2]
[334551527,1723198238190,-23349.18614489,0.00011,2]
[334551531,1723198239892,-53895.59511562,0.00011,2]
[334551532,1723198239902,-28613.88403035,0.00011,2]
[334551533,1723198239914,-250.0,0.00011,2]
[334551534,1723198239925,-959.24343264,0.00011,2]
[334551536,1723198241314,-3039.3,0.00011,2]
[334551537,1723198241326,-12680.5478965,0.00011,2]
[334551538,1723198241341,-596439.999996,0.00011,2]
[334551539,1723198241353,-1679.44999998,0.00011,2]
[334551540,1723198241365,-4608.46810061,0.00011,2]
[334551553,1723198242673,-1789.29207492,0.00011,2]
[334551558,1723198242710,-10518.47697788,0.00011,2]
[334551559,1723198242722,-9502.41654639,0.00011,2]
[334551560,1723198242833,-265.29076643,0.00011,2]
[334551562,1723198243883,-1539.88756193,0.00011,2]
[334551563,1723198243900,-6400.0425959,0.00011,2]
[334551564,1723198243912,-406.07,0.00011,2]
[334551565,1723198243923,-745.8867187,0.00011,2]
[334551566,1723198243934,-421.401,0.00011,2]
[334551567,1723198245942,-873.74712415,0.00011,2]
[334551568,1723198245954,-197.25287585,0.00011,2]
[334551569,1723198245963,-1766.03175018,0.00011,2]
[334551570,1723198245975,-3299.11777029,0.00011,2]
[334551571,1723198246011,-1239.88380057,0.00011,2]
[334551572,1723198246039,-854.0,0.00011,2]
[334551573,1723198246051,-400.0,0.00011,2]
[334551574,1723198246145,-2458.01466891,0.00011,2]
[334551575,1723198246157,-10391.97917367,0.00011,2]
[334551576,1723198246168,-438.217861,0.00011,2]
[334551577,1723198246180,-4028.06691352,0.00011,2]
[334551578,1723198246191,-618.3903605,0.00011,2]
[334551579,1723198246202,-583.65102983,0.00011,2]
[334551580,1723198246214,-109583.26295952,0.00011,2]
[334551581,1723198246231,-663.15118496,0.00011,2]
[334551582,1723198725787,-648.72380649,9.963e-05,2]
[334551583,1723198790188,662.54,8.219e-05,2]
[334551584,1723199021629,363.16438108,8.219e-05,2]
[334551585,1723199021658,1113.72596057,8.219e-05,2]
[334551586,1723199021686,1239.11776865,8.219e-05,2]
[334551587,1723199021715,1281.88223135,8.219e-05,2]
[334551588,1723199021747,7497.86225029,8.219e-05,2]
[334551595,1723199348573,629.41,8.219e-05,2]
[334551597,1723199376212,-258.62,9.716e-05,2]
[334551598,1723199376240,-346.2231813,9.801e-05,2]
[334551607,1723199432084,-99.8868187,9.801e-05,2]
[334551608,1723199432094,-197.97,9.841e-05,2]
[334551609,1723199432104,-1735.00218578,9.853e-05,2]
[334551610,1723199432115,-117.41781422,9.853e-05,2]
[334551611,1723199432125,-489.48,9.853e-05,2]
[334551612,1723199432134,-200.0,9.905e-05,2]
[334551613,1723199432143,-300.0,9.921e-05,2]
[334551614,1723199432158,-250.0,9.922e-05,2]
[334551615,1723199432167,-800.8039077,9.922e-05,2]
[334551616,1723199432179,-298.4750527,9.922e-05,2]
[334551617,1723199432190,-3810.80216,9.922e-05,2]
[334551618,1723199432201,-326.80050338,9.922e-05,2]
[334551619,1723199432212,-18633.11837622,9.922e-05,2]
[334551620,1723199432222,-150.0,9.961e-05,2]
[334551621,1723199432231,-150.99,0.00010008,2]
[334551622,1723199432241,-271.85,0.00010008,2]
[334551623,1723199432251,-1455.41,0.00010008,2]
[334551624,1723199432260,-7612.15,0.00010008,2]
[334551625,1723199432270,-510.52,0.00010009,2]
[334551626,1723199432280,-200.0,0.00010063,2]
[334551627,1723199432290,-505.0,0.0001011,2]
[334551628,1723199432299,-150.92521934,0.00010226,2]
[334551629,1723199432311,-318.56478066,0.00010226,2]
[334551630,1723199432320,-580.32,0.00010299,2]
[334551631,1723199432330,-102.29709844,0.00010299,2]
[334551632,1723199432341,-528.84290156,0.00010299,2]
[334551633,1723199432351,-5576.07,0.00010299,2]
[334551634,1723199432360,-499.99,0.00010318,2]
[334551635,1723199432369,-629.41,0.00010461,2]
[334551636,1723199432379,-8602.49958157,0.000107,2]
[334551637,1723199432388,-3176.6329,0.000107,2]
[334551638,1723199432402,-182.97480362,0.000107,2]
[334551639,1723199432411,-319.02823927,0.00010799,2]
[334551640,1723199432421,-5619.287,0.000108,2]